Cogmind - Beta 13 @@@ ROGUE MODE // 2024.05.27 @ 15:25:28 Player: Ragemodebzrk Result: Destroyed by as-22445 with Assembled Maul Performance ------------- Evolutions (0) 0 Regions Visited (4) 800 Robots Destroyed (6) 30 Value Destroyed (86) 86 Prototype IDs (3) 60 Alien Tech Used (0) 0 Bonus (300) 300 TOTAL SCORE: 1276 Bonus ------- Aligned with FarCom 300 Cogmind --------- Core Integrity 0/250 Matter 279/300 Energy 1564/1600 System Corruption 5% Temperature Cool (95) Movement Core (100) Ox1 Location -9/Mines Parts ------- > --- POWER (1) -------- (None) > --- PROPULSION (2) --- Flight Unit > --- UTILITY (2) ------ Superbattery PSU Rigger > --- WEAPON (2) ------- (None) > --- INVENTORY (5) ---- Light Ion Engine Sensor Array Peak State ------------ > --- POWER ------------ Light Ion Engine > --- PROPULSION ------- Compact Wheel Compact Wheel > --- UTILITY ---------- Superbattery PSU Rigger > --- WEAPON ----------- Medium Laser Light Assault Rifle > --- INVENTORY -------- Light Ion Engine Flight Unit Sensor Array EM Pulse Gun [Rating: 23] Favorites ----------- Power Light Ion Engine Engine Light Ion Engine Propulsion Compact Wheel Wheel Compact Wheel Flight Unit Flight Unit Utility Sensor Array Device Sensor Array Storage Superbattery Processor Signal Interpreter Weapon Medium Laser Energy Gun Medium Laser Ballistic Gun Light Assault Rifle Build | -11 -10 -10 -10 -9 ------- Run | Yrd Mat Min Exi Min Slots Evolved . | . . . . . Power . | . . . . . Propulsion . | . . . . . Utility . | . . . . . Weapon . | . . . . . Parts Attached 15 | 5 4 1 3 2 Power 1 | 1 . . . . Engine 1 | 1 . . . . Core . | . . . . . Reactor . | . . . . . Propulsion 5 | 2 2 . . 1 Treads . | . . . . . Leg . | . . . . . Wheel 4 | 2 2 . . . Hover . | . . . . . Flight 1 | . . . . 1 Utility 5 | . 2 . 3 . Device 3 | . 1 . 2 . Storage 1 | . . . 1 . Processor 1 | . 1 . . . Hackware . | . . . . . Protection . | . . . . . Artifact . | . . . . . Weapon 4 | 2 . 1 . 1 Energy Gun 2 | 1 . . . 1 Energy Cannon . | . . . . . Ballistic Gun 2 | 1 . 1 . . Ballistic Cannon . | . . . . . Launcher . | . . . . . Special Weapon . | . . . . . Impact Weapon . | . . . . . Slashing Weapon . | . . . . . Piercing Weapon . | . . . . . Special Melee Weapon . | . . . . . Unidentified Prototypes 3 | . . . 3 . Parts Lost 6 | . . . . 6 Power 1 | . . . . 1 Propulsion 2 | . . . . 2 Utility . | . . . . . Weapon 3 | . . . . 3 Highest Loss Streak 6 | . . . . 6 To Critical Strikes . | . . . . . Average Slot Usage (%) 94 | . 85 100 99 63 Engine 13 | . 14 14 14 7 Wheel 27 | . 28 28 28 7 Device 12 | . 7 14 14 14 Storage 4 | . . . 6 14 Processor 7 | . 7 14 7 . Energy Gun 14 | . 14 14 14 14 Ballistic Gun 13 | . 14 14 14 7 Naked Turns . | . . . . . Heaviest Build 12 | 7 8 8 12 12 Greatest Support 32 | 20 32 32 32 32 Greatest Overweight (x) 3 | 1 . . . 3 Average Overweight (x) . | . . . . 1 Largest Inventory Capacity 5 | 5 5 5 5 5 Average Capacity 5 | 5 5 5 5 5 Most Carried 5 | 2 3 4 5 4 Average Carried 2 | . . 3 3 3 Final Capacity 5 | 5 5 5 5 5 Final Carried 4 | . 2 3 4 2 Class Distribution -------------------- 51% | Scavenger-Mutant 48% | Mutant Dominant Class ---------------- Scavenger-Mutant | -10/Materials Scavenger-Mutant | -10/Mines Scavenger-Mutant | -10/Exiles Mutant | -9/Mines Resources | -11 -10 -10 -10 -9 ----------- Run | Yrd Mat Min Exi Min Matter Collected 395 | 256 80 38 . 21 Remotely . | . . . . . Salvage Created 180 | 32 148 . . . Parts 16 | 3 13 . . . Haulers Intercepted . | . . . . . Recyclers Shooed . | . . . . . Parts Field Recycled . | . . . . . Retrieved Matter . | . . . . . Parts Self-Destructed . | . . . . . Prevented . | . . . . . Kills | -11 -10 -10 -10 -9 ------- Run | Yrd Mat Min Exi Min Combat Hostiles Destroyed 4 | 1 3 . . . Guns 4 | 1 3 . . . Classes Destroyed 4 | 1 3 . . . Recycler 1 | . 1 . . . Watcher 1 | . 1 . . . Swarmer 3 | . 3 . . . Grunt 1 | 1 . . . . Best Kill Streak 5 | 1 5 . . . Combat Bots Only 3 | 1 3 . . . Max Kills in Single Turn 1 | 1 1 . . . Gunslinging . | . . . . . Exploded . | . . . . . Melee . | . . . . . Uniques/NPCs Destroyed . | . . . . . Combat | -11 -10 -10 -10 -9 -------- Run | Yrd Mat Min Exi Min Hostile Shots Fired 90 | 2 37 5 . 46 Missed 29 | 2 15 1 . 11 Damage Taken 706 | . 173 33 . 500 Core 268 | . 31 8 . 229 Absorbed by Shields . | . . . . . Core Remaining (%) 100 | 100 . . . . Volleys Fired 31 | 2 24 2 . 3 Largest 1 | 1 1 1 . 1 Hottest 40 | 20 20 20 . 40 Shots Fired 31 | 2 24 2 . 3 Gun 31 | 2 24 2 . 3 Cannon . | . . . . . Launcher . | . . . . . Special . | . . . . . Kinetic 30 | 2 24 2 . 2 Thermal . | . . . . . Explosive . | . . . . . Electromagnetic 1 | . . . . 1 Robot Hit Streak 6 | 2 6 1 . 2 Robot Miss Streak 5 | . 5 1 . 1 Penetration Max . | . . . . . Secondary Targets . | . . . . . Shots Hit Robots 19 | 2 14 1 . 2 Core Hits 9 | 2 6 . . 1 Critical Kills 1 | . 1 . . . Critical Parts Destroyed . | . . . . . Critical Strikes 1 | . 1 . . . Destroy 1 | . 1 . . . Melee Attacks . | . . . . . Impact . | . . . . . Slashing . | . . . . . Piercing . | . . . . . Sneak Attacks . | . . . . . Combat Hostiles . | . . . . . Follow-up Attacks . | . . . . . Damage Inflicted 255 | 27 189 12 . 27 Guns 255 | 27 189 12 . 27 Cannons . | . . . . . Explosions . | . . . . . Melee . | . . . . . Ramming . | . . . . . Kinetic 244 | 27 189 12 . 16 Thermal . | . . . . . Explosive . | . . . . . Electromagnetic 11 | . . . . 11 Impact . | . . . . . Slashing . | . . . . . Piercing . | . . . . . Highest Corruption 5 | . . . . 5 Average Corruption 5 | . . . . 5 Corruption Purged . | . . . . . Corruption Blocked . | . . . . . Effects 1 | . . . . 1 Heat Flow Errors 1 | . . . . 1 Overload Shots . | . . . . . Overflow Damage . | . . . . . Projectiles . | . . . . . Explosions . | . . . . . Melee . | . . . . . Knockbacks . | . . . . . Impact . | . . . . . Kinetic . | . . . . . Secondary . | . . . . . Self-Inflicted Damage . | . . . . . Shots . | . . . . . Rammed . | . . . . . Targets Rammed . | . . . . . Kicked . | . . . . . Crushed . | . . . . . Highest Temperature 100 | . . . . 100 Average Temperature 68 | . . . . 68 Received Heat Transfer 180 | . . . . 180 Siege Activations . | . . . . . Robots Corrupted . | . . . . . Combat Hostiles . | . . . . . Parts Fried . | . . . . . Impact Corruptions . | . . . . . Robots Melted . | . . . . . Combat Hostiles . | . . . . . Parts Melted . | . . . . . Heat Transferred . | . . . . . Parts Sabotaged . | . . . . . Parts Stolen . | . . . . . Parts Stripped . | . . . . . Power Chain Reactions . | . . . . . Alert | -11 -10 -10 -10 -9 ------- Run | Yrd Mat Min Exi Min Peak Influence 125 | 20 125 63 . . Initial 48 | . 13 48 . . Average 57 | 3 84 62 . . Maximum Alert Level . | . . . . . Low Security (%) 100 | 100 100 100 . 100 Level 1 . | . . . . . Level 2 . | . . . . . Level 3 . | . . . . . Level 4 . | . . . . . Level 5 . | . . . . . High Security . | . . . . . Max Security . | . . . . . Squads Dispatched 1 | . 1 . . . Investigation . | . . . . . Extermination . | . . . . . Reinforcement 1 | . 1 . . . Assault . | . . . . . Garrison . | . . . . . Intercept . | . . . . . Searches Triggered . | . . . . . Construction Impeded . | . . . . . Haulers Reinforced . | . . . . . Active Scanning Responses . | . . . . . Cargo Convoy Interrupts . | . . . . . Stealth | -11 -10 -10 -10 -9 --------- Run | Yrd Mat Min Exi Min Distress Signals 2 | . 2 . . . Communications Jammed . | . . . . . Distress Signals . | . . . . . Times Spotted 30 | 1 5 4 . 20 Peak Tracking Total 20 | 1 4 4 . 20 Tactical Retreats . | . . . . . Traps | -11 -10 -10 -10 -9 ------- Run | Yrd Mat Min Exi Min Traps Triggered . | . . . . . Indirectly . | . . . . . Trap Hack Attempts . | . . . . . Triggered . | . . . . . Disarmed . | . . . . . Reprogrammed . | . . . . . Reused . | . . . . . Traps Extracted . | . . . . . Installed . | . . . . . Triggered . | . . . . . Machines | -11 -10 -10 -10 -9 ---------- Run | Yrd Mat Min Exi Min Machines Disabled . | . . . . . Max in Single Turn . | . . . . . Machines Repaired . | . . . . . Machines Dismantled . | . . . . . Machines Sabotaged . | . . . . . Overloaded Fab Kills . | . . . . . Hacking | -11 -10 -10 -10 -9 --------- Run | Yrd Mat Min Exi Min Machines Accessed 5 | . 1 . 4 . Terminals 1 | . 1 . . . Fabricators . | . . . . . Repair Stations . | . . . . . Recycling Units . | . . . . . Scanalyzers . | . . . . . Garrison Access . | . . . . . Total Hacks 53 | . 5 . 48 . Successful 49 | . 1 . 48 . Failed 4 | . 4 . . . Catastrophic . | . . . . . Database Lockouts . | . . . . . Manual 1 | . . . 1 . Terminals 5 | . 5 . . . Fabricators . | . . . . . Repair Stations . | . . . . . Recycling Units . | . . . . . Scanalyzers . | . . . . . Garrison Access . | . . . . . Terminal Hacks 49 | . 1 . 48 . Record 48 | . . . 48 . Locate Traps 1 | . 1 . . . Fabricator Hacks . | . . . . . Repair Station Hacks . | . . . . . Recycling Unit Hacks . | . . . . . Scanalyzer . | . . . . . Garrison Access Hacks . | . . . . . Unauthorized Hacks . | . . . . . Terminals . | . . . . . Fabricators . | . . . . . Repair Stations . | . . . . . Recycling Units . | . . . . . Scanalyzers . | . . . . . Garrison Access . | . . . . . Data Cores Recovered . | . . . . . Used . | . . . . . Hacking Detections 1 | . 1 . . . Full Trace Events . | . . . . . Feedback Events . | . . . . . Feedback Blocked . | . . . . . Robot Schematics Acquired . | . . . . . Robots Built . | . . . . . Authchips . | . . . . . Time . | . . . . . Total Robot Build Rating . | . . . . . Part Schematics Acquired . | . . . . . Parts Built . | . . . . . Authchips . | . . . . . Time . | . . . . . Total Part Build Rating . | . . . . . Parts Repaired . | . . . . . Time . | . . . . . Parts Recycled . | . . . . . Recycled Matter . | . . . . . Retrieved Matter . | . . . . . Retrieved Components . | . . . . . Parts Scanalyzed . | . . . . . Part Schematics Acquired . | . . . . . Parts Damaged . | . . . . . Bothacking | -11 -10 -10 -10 -9 ------------ Run | Yrd Mat Min Exi Min Used RIF Installer . | . . . . . Robots Hacked . | . . . . . Non-combat . | . . . . . Combat . | . . . . . Robot Hacks Applied . | . . . . . Relay Couplers Released . | . . . . . Fabnet Peak Effective % . | . . . . . Robots Rewired . | . . . . . Allies Hacked . | . . . . . Hacks Repelled . | . . . . . Allies | -11 -10 -10 -10 -9 -------- Run | Yrd Mat Min Exi Min Total Allies . | . . . . . Largest Group . | . . . . . Highest-Rated Group . | . . . . . Highest-Rated Ally . | . . . . . Total Orders . | . . . . . Ally Attacks . | . . . . . Total Damage . | . . . . . Kills . | . . . . . Allies Corrupted . | . . . . . Allies Melted . | . . . . . Intel | -11 -10 -10 -10 -9 ------- Run | Yrd Mat Min Exi Min Robot Analysis Total . | . . . . . Derelict Logs Recovered . | . . . . . Drone Launches . | . . . . . Drone Recoveries . | . . . . . Exploration | -11 -10 -10 -10 -9 ------------- Run | Yrd Mat Min Exi Min Turns Passed 590 | 57 132 78 306 17 Spaces Moved 503 | 64 80 54 298 7 Core 38 | 34 . . . 4 Treads . | . . . . . Legs . | . . . . . Wheels 465 | 30 80 54 298 3 Hover . | . . . . . Flight . | . . . . . Fastest Speed 50 | 50 80 100 100 100 Average Speed 94 | 67 90 100 100 128 Slowest Speed 200 | 100 100 100 100 200 Overloaded Moves . | . . . . . Propulsion Burnouts . | . . . . . Robots Hopped . | . . . . . Cave-ins Triggered . | . . . . . Time Travels 1 | . . . 1 . Exploration Rate (%) 22 | 5 17 16 68 6 Regions Visited 4 Branch Regions 3 Pre-discovered Areas 1 | . . . 1 . Known Exits Taken 2 | . 1 1 . . Unknown Exits Taken 2 | 1 . . 1 . Scrap Searched 1 | . . . . 1 Spaces Dug . | . . . . . Terrain Destroyed . | . . . . . Melee . | . . . . . Projectile . | . . . . . AOE . | . . . . . Terrain Rammed . | . . . . . Walls Destroyed . | . . . . . Machines Disabled . | . . . . . Actions | -11 -10 -10 -10 -9 --------- Run | Yrd Mat Min Exi Min Total 582 | 75 115 75 305 12 Wait 16 | . . 16 . . Move 499 | 63 79 53 297 7 Hop . | . . . . . Pick Up 17 | 5 6 2 4 . Fast Attach . | . . . . . Attach 10 | 5 2 . 1 2 Detach . | . . . . . Swap 5 | . 2 1 2 . Drop 4 | . 2 1 1 . Fire 31 | 2 24 2 . 3 Melee . | . . . . . Ram . | . . . . . Kick . | . . . . . Crush . | . . . . . Escape Stasis . | . . . . . Rewire . | . . . . . Trap . | . . . . . Miscellaneous . | . . . . . Route ------- -11/Scrapyard -10/Materials -10/Mines -10/Exiles -9/Mines History --------- Turn | Location | Event 2 | -11/Scrapyard | Met Revision 17 43 | -11/Scrapyard | Discovered new exit (range 8) 58 | -11/Scrapyard | Entered Materials 75 | -10/Materials | Discovered new exit (range 10) 166 | -10/Materials | Met 8R-AWN 189 | -10/Materials | Identified exit to Mines 190 | -10/Materials | Entered Mines 191 | -10/Mines | Followed 8R-AWN into the Mines 263 | -10/Mines | Discovered new exit (range 5) 267 | -10/Mines | Identified exit to Exiles 268 | -10/Mines | Entered Exiles 295 | -10/Exiles | Welcomed by 8R-AWN 315 | -10/Exiles | Met EX-HEX 347 | -10/Exiles | Met EX-BIN 362 | -10/Exiles | Aligned with FarCom system 363 | -10/Exiles | Given EX-Vault access code 414 | -10/Exiles | Opened EX-Vault 419 | -10/Exiles | Build established: Scavenger-Mutant 419 | -10/Exiles | Found Prototype Device 422 | -10/Exiles | Found Prototype Device 427 | -10/Exiles | Identified PSU Rigger 428 | -10/Exiles | Identified Chronowheel 428 | -10/Exiles | Activated Chronowheel 428 | -10/Exiles | Spacetime reconverged on an earlier point 429 | -10/Exiles | Found Prototype Storage 430 | -10/Exiles | Identified Superbattery 453 | -10/Exiles | Warned to stay clear of 0b10 Research branches 482 | -10/Exiles | Met EX-DEC 512 | -10/Exiles | Learned location of Zion (-7) 564 | -10/Exiles | Discovered new exit (range 10) 574 | -10/Exiles | Stole two prototypes: PSU Rigger, Superbattery 574 | -10/Exiles | Entered Mines 575 | -9/Mines | Assembled infested the area 584 | -9/Mines | Core integrity fell below 50% 591 | -9/Mines | Core integrity fell below 20% 591 | -9/Mines | Destroyed by as-22445 with Assembled Maul Last Messages --------------- Demolisher response squad. [Achievement: Hunted] Important note for Steam players: Cogmind player global achievement rates displayed by Steam are all significantly underreported, in some cases by a huge margin, due to how they are calculated by Valve. Com. Wheel destroyed. System corrupted by crushing effect (+5). Med. Laser destroyed. System corrupted: Heat flow error (+110). Lgt. Ion Engine destroyed. Lgt. Assault Rifle destroyed. Searching scrap... Found Disposable Heat Sink. Found Beam Cannon. Found 21 Matter. Acquired 21 matter. Critical hit (Burn: +80). EM Pulse Gun destroyed. Map ----- +----------------------------------------------------+ | ?????????????????????????????????????????????????? | | ?????????????????????????????????????????????????? | | ?????????????????????????????????????????????????? | | ?????????????????????????????????????????????????? | | ?????????????????????????????????????????????????? | | ?????????????????????????????????????????????????? | | ?????????????????????????????????????????????????? | | ?????????????????????????????????????????????????? | | ?????????????????????????????????????????????????? | | ?????????????????????????????????????????????????? | | ??????????????????????? #????????????????????????? | | ??????????????????????? ????????????????????????? | | ??????????????????????? ????????????????????????? | | ??????????????????????? #???????????????????????? | | ??????????????????????? ???????????????????????? | | ??????????????????????? ???????????????????????? | | ??????????????????????? ???????????????????????? | | ???????????????????????# ???????????????????????? | | ???????????????????????# #???????????????????????? | | ???????????????????????# #???????????????????????? | | ???????????????????????# #???????????????????????? | | ???????? ??????????????# ##??????????????????????? | | ???????# ??????????## ##??? ##???????????????? | | ???????# ??????## ## #???????????????? | | ??????# " ##### aaa ##??????????????? | | ?????? a a a@] #??????????????? | | ??????????# a a aaaaa ### #?????????????? | | ??????????# ###a## #?????????????????????? | | ??????????# ?????# ?## ##?????????????????????? | | ???????????????????#???####??????????????????????? | | ?????????????????????????????????????????????????? | | ?????????????????????????????????????????????????? | | ?????????????????????????????????????????????????? | | ?????????????????????????????????????????????????? | | ?????????????????????????????????????????????????? | | ?????????????????????????????????????????????????? | | ?????????????????????????????????????????????????? | | ?????????????????????????????????????????????????? | | ?????????????????????????????????????????????????? | | ?????????????????????????????????????????????????? | | ?????????????????????????????????????????????????? | | | | | | | | | | | | | | | | | | | +----------------------------------------------------+ Best States ------------- Heat Dissipation 25 Energy Generation 10 Energy Capacity 1625 Matter Stores 300 Matter Capacity 300 Sight Range 16 Robot Scan Range 14 Terrain Scan Density 10 Evasion (%) 50 Item Schematics ----------------- None Robot Schematics ------------------ None Fabricated ------------ Nothing Alien Tech Used ----------------- None Achievements -------------- Hunted Librarian Tourist Challenges ------------ None Game ------ Seed WaveSigixSpecial Manual? 0 Play Time 00:21:44 Cumulative 2.4 hours Start 2024.05.27 @ 02:17:10 End 2024.05.27 @ 15:25:28 Sessions 3 Manual Loads 0 Difficulty Rogue Special Mode None Game No. 3 Rogue 3 Adventurer 0 Explorer 0 Win Type - Total 0 Types 0/0/0/0/0/0/0/0/0 Lore% 8 Gallery% 9 Achievement% 6 Wizard Run 0 Options --------- Layout 1 ASCII 0 Keyboard 0 Movement Mouse Keybinds 0 Fullscreen 1 Font 24/Smallcaps Map View 50x35 Zoom Use 0% Tactical HUD 0 Map Filters NONE Filters NONE Steam 1 RUN: c3cdd56c-7545-4541-8b90-d3a5f5e63b1f